[Event "*** Titled Tuesday Blitz"]
[Site "Chess.com"]
[Date "2021.03.30"]
[Round "6"]
[White "tteshan"]
[Black "campomania3"]
[Result "0-1"]
[WhiteElo "2317"]
[BlackElo "2225"]
[TimeControl "180+1"]
[EndTime "11:06:24 PDT"]
[Termination "campomania3 won by resignation"]

1. d4 {[%clk 0:03:00.9]} 1... d5 {[%clk 0:02:59.7]} 2. c4 {[%clk 0:03:00.6]}
2... c6 {[%clk 0:02:59.9]} 3. Nc3 {[%clk 0:03:01]} 3... e5 {[%clk 0:02:59.6]} 4.
dxe5 {[%clk 0:02:58.8]} 4... d4 {[%clk 0:02:59.6]} 5. Ne4 {[%clk 0:02:55.1]}
5... Qa5+ {[%clk 0:02:59.6]} 6. Bd2 {[%clk 0:02:47.8]} 6... Qxe5 {[%clk
0:02:58.9]} 7. Ng3 {[%clk 0:02:48.2]} 7... Nf6 {[%clk 0:02:59.2]} 8. Nf3 {[%clk
0:02:48.1]} 8... Qd6 {[%clk 0:02:59.6]} 9. e3 {[%clk 0:02:19.7]} 9... dxe3
{[%clk 0:02:59]} 10. Bxe3 {[%clk 0:02:18.6]} 10... Qxd1+ {[%clk 0:02:57.8]} 11.
Rxd1 {[%clk 0:02:18.6]} 11... Bb4+ {[%clk 0:02:57.4]} 12. Bd2 {[%clk 0:02:12.2]}
12... Bxd2+ {[%clk 0:02:53.4]} 13. Rxd2 {[%clk 0:02:12.8]} 13... O-O {[%clk
0:02:53.2]} 14. Be2 {[%clk 0:02:11.3]} 14... Re8 {[%clk 0:02:53]} 15. O-O {[%clk
0:02:10.3]} 15... Na6 {[%clk 0:02:48.3]} 16. Rfd1 {[%clk 0:02:09.1]} 16... Nc5
{[%clk 0:02:44]} 17. b4 {[%clk 0:02:05.9]} 17... Nce4 {[%clk 0:02:41.1]} 18.
Nxe4 {[%clk 0:02:02.6]} 18... Nxe4 {[%clk 0:02:41.1]} 19. Rd8 {[%clk 0:02:00.1]}
19... Be6 {[%clk 0:02:30.7]} 20. Rxa8 {[%clk 0:02:00]} 20... Rxa8 {[%clk
0:02:29]} 21. Bd3 {[%clk 0:01:32.7]} 21... Rd8 {[%clk 0:02:16.1]} 22. h4 {[%clk
0:01:09.1]} 22... Bxc4 {[%clk 0:02:09.2]} 23. Ne5 {[%clk 0:00:58.2]} 23... Bxd3
{[%clk 0:02:04.9]} 24. Rxd3 {[%clk 0:00:58]} 24... Rxd3 {[%clk 0:02:01.1]} 25.
Nxd3 {[%clk 0:00:58.9]} 25... Kf8 {[%clk 0:01:49.8]} 26. f3 {[%clk 0:00:52.8]}
26... Nc3 {[%clk 0:01:49.1]} 27. a3 {[%clk 0:00:52.8]} 27... Ke7 {[%clk
0:01:49]} 28. Kf2 {[%clk 0:00:52.9]} 28... g6 {[%clk 0:01:47.8]} 29. Ke3 {[%clk
0:00:52.4]} 29... Kd6 {[%clk 0:01:43.8]} 30. Nc5 {[%clk 0:00:47.6]} 30... b6
{[%clk 0:01:42.4]} 31. Nd3 {[%clk 0:00:32.8]} 31... f5 {[%clk 0:01:35]} 32. g4
{[%clk 0:00:28]} 32... fxg4 {[%clk 0:01:33.6]} 33. fxg4 {[%clk 0:00:28.9]} 33...
a5 {[%clk 0:01:31.9]} 34. bxa5 {[%clk 0:00:23.8]} 34... bxa5 {[%clk 0:01:32]}
35. h5 {[%clk 0:00:21.7]} 35... gxh5 {[%clk 0:01:31.1]} 36. gxh5 {[%clk
0:00:22.6]} 36... Nb5 {[%clk 0:01:23.1]} 37. a4 {[%clk 0:00:20.1]} 37... Nc3
{[%clk 0:01:23.2]} 38. Nb2 {[%clk 0:00:20.3]} 38... Kc5 {[%clk 0:01:15.5]} 39.
Kf4 {[%clk 0:00:10.2]} 39... Kb4 {[%clk 0:01:13.2]} 40. Kf5 {[%clk 0:00:10.2]}
40... Kb3 {[%clk 0:01:13.3]} 41. Nd3 {[%clk 0:00:09.7]} 41... Kc4 {[%clk
0:01:12.5]} 42. Nc1 {[%clk 0:00:09.7]} 42... Nxa4 {[%clk 0:01:11.5]} 43. Kf6
{[%clk 0:00:09.8]} 43... Nc5 {[%clk 0:01:11.4]} 44. h6 {[%clk 0:00:08.9]} 44...
a4 {[%clk 0:01:06]} 45. Kg7 {[%clk 0:00:09.1]} 45... Ne6+ {[%clk 0:01:04.9]} 46.
Kxh7 {[%clk 0:00:09.4]} 46... a3 {[%clk 0:01:04.8]} 47. Kg6 {[%clk 0:00:04.6]}
47... Kd5 {[%clk 0:01:02.6]} 48. h7 {[%clk 0:00:03.2]} 48... Nf8+ {[%clk
0:01:02.6]} 49. Kg7 {[%clk 0:00:03.7]} 49... Nxh7 {[%clk 0:01:02.8]} 50. Kxh7
{[%clk 0:00:04.6]} 50... Kc4 {[%clk 0:01:02.6]} 51. Kg6 {[%clk 0:00:05]} 51...
Kc3 {[%clk 0:01:02.9]} 52. Na2+ {[%clk 0:00:03.1]} 52... Kb2 {[%clk 0:01:02.8]}
53. Nb4 {[%clk 0:00:03.1]} 53... c5 {[%clk 0:01:03]} 54. Nd3+ {[%clk 0:00:02.9]}
54... Kb1 {[%clk 0:01:01.3]} 55. Nxc5 {[%clk 0:00:02.3]} 55... a2 {[%clk
0:01:01.6]} 56. Nb3 {[%clk 0:00:02.8]} 56... Kb2 {[%clk 0:01:01]} 57. Na1 {[%clk
0:00:03]} 57... Kxa1 {[%clk 0:01:01]} 0-1

[Event "*** Titled Tuesday Blitz"]
[Site "Chess.com"]
[Date "2021.03.30"]
[Round "6"]
[White "dachessmandan"]
[Black "andriipalchuk"]
[Result "0-1"]
[WhiteElo "2490"]
[BlackElo "2624"]
[TimeControl "180+1"]
[EndTime "11:06:25 PDT"]
[Termination "andriipalchuk won by resignation"]

1. d4 {[%clk 0:03:00.9]} 1... d5 {[%clk 0:02:58.3]} 2. Bf4 {[%clk 0:02:59.6]}
2... Nf6 {[%clk 0:02:57.7]} 3. e3 {[%clk 0:02:59]} 3... g6 {[%clk 0:02:57.4]} 4.
Nf3 {[%clk 0:02:58.8]} 4... Bg7 {[%clk 0:02:58]} 5. Nbd2 {[%clk 0:02:58.9]} 5...
O-O {[%clk 0:02:58.6]} 6. h3 {[%clk 0:02:59.5]} 6... c5 {[%clk 0:02:59]} 7. c3
{[%clk 0:02:59.4]} 7... Nc6 {[%clk 0:02:51.3]} 8. Bd3 {[%clk 0:02:56.5]} 8...
Nd7 {[%clk 0:02:49.3]} 9. O-O {[%clk 0:02:49.6]} 9... e5 {[%clk 0:02:48.8]} 10.
dxe5 {[%clk 0:02:50.5]} 10... Ndxe5 {[%clk 0:02:49.6]} 11. Bc2 {[%clk 0:02:44]}
11... Re8 {[%clk 0:02:48]} 12. Ba4 {[%clk 0:02:25.3]} 12... Nd3 {[%clk
0:02:44.1]} 13. Bxc6 {[%clk 0:01:50.2]} 13... bxc6 {[%clk 0:02:42.6]} 14. Bg5
{[%clk 0:01:43.8]} 14... f6 {[%clk 0:02:38.4]} 15. Bh4 {[%clk 0:01:43.7]} 15...
Ba6 {[%clk 0:02:17.7]} 16. Qc2 {[%clk 0:01:34.2]} 16... Qb6 {[%clk 0:01:56.3]}
17. Rab1 {[%clk 0:01:31.3]} 17... f5 {[%clk 0:01:47.6]} 18. Rfd1 {[%clk
0:01:30.1]} 18... f4 {[%clk 0:01:44.8]} 19. Nf1 {[%clk 0:01:08.3]} 19... Ne5
{[%clk 0:01:09.1]} 20. Nxe5 {[%clk 0:01:03.5]} 20... Bxe5 {[%clk 0:01:07.8]} 21.
e4 {[%clk 0:00:44.7]} 21... Bc8 {[%clk 0:00:35.9]} 22. exd5 {[%clk 0:00:40.5]}
22... Bf5 {[%clk 0:00:35.1]} 23. Qd2 {[%clk 0:00:32.4]} 23... Bxb1 {[%clk
0:00:33.9]} 24. Rxb1 {[%clk 0:00:33.3]} 24... cxd5 {[%clk 0:00:34.5]} 25. Qxd5+
{[%clk 0:00:33]} 25... Qe6 {[%clk 0:00:35.2]} 26. Qxc5 {[%clk 0:00:29.9]} 26...
Qxa2 {[%clk 0:00:35.7]} 27. Re1 {[%clk 0:00:29.1]} 27... Bg7 {[%clk 0:00:29.5]}
28. Be7 {[%clk 0:00:26.3]} 28... Qxb2 {[%clk 0:00:25.7]} 29. Qd5+ {[%clk
0:00:19.4]} 29... Kh8 {[%clk 0:00:25.7]} 30. Qf7 {[%clk 0:00:18.4]} 30... Qb7
{[%clk 0:00:12.8]} 31. Re6 {[%clk 0:00:14.4]} 31... Qd7 {[%clk 0:00:09.4]} 32.
Nh2 {[%clk 0:00:13.5]} 32... Rf8 {[%clk 0:00:08.8]} 33. Rd6 {[%clk 0:00:08.5]}
33... Qxd6 {[%clk 0:00:05.6]} 34. Qxg7+ {[%clk 0:00:08.3]} 34... Kxg7 {[%clk
0:00:05.7]} 35. Bxd6 {[%clk 0:00:09.2]} 35... Rfe8 {[%clk 0:00:06.1]} 36. Bxf4
{[%clk 0:00:08.1]} 36... a5 {[%clk 0:00:06.8]} 37. c4 {[%clk 0:00:07.3]} 37...
a4 {[%clk 0:00:07.5]} 38. Nf3 {[%clk 0:00:07.8]} 38... a3 {[%clk 0:00:08.2]} 39.
Be5+ {[%clk 0:00:08.5]} 39... Rxe5 {[%clk 0:00:08]} 40. Nxe5 {[%clk 0:00:09.4]}
40... a2 {[%clk 0:00:08.8]} 0-1

[Event "*** Titled Tuesday Blitz"]
[Site "Chess.com"]
[Date "2021.03.30"]
[Round "6"]
[White "rachidhuilda"]
[Black "NishaOnYoutube"]
[Result "0-1"]
[WhiteElo "2281"]
[BlackElo "2192"]
[TimeControl "180+1"]
[EndTime "11:06:25 PDT"]
[Termination "NishaOnYoutube won on time"]

1. d4 {[%clk 0:03:00.9]} 1... f5 {[%clk 0:02:57.2]} 2. g3 {[%clk 0:03:00.3]}
2... g6 {[%clk 0:02:57.4]} 3. Bg2 {[%clk 0:03:00.6]} 3... Bg7 {[%clk 0:02:58]}
4. c4 {[%clk 0:03:00.4]} 4... c6 {[%clk 0:02:57.8]} 5. Nc3 {[%clk 0:02:57.3]}
5... d6 {[%clk 0:02:57.7]} 6. Nh3 {[%clk 0:02:54.8]} 6... Nh6 {[%clk 0:02:57.5]}
7. d5 {[%clk 0:02:48.9]} 7... O-O {[%clk 0:02:46]} 8. O-O {[%clk 0:02:47]} 8...
e5 {[%clk 0:02:34.8]} 9. dxe6 {[%clk 0:02:46.4]} 9... Bxe6 {[%clk 0:02:34.9]}
10. Qa4 {[%clk 0:02:31.8]} 10... Kh8 {[%clk 0:02:20.7]} 11. Nf4 {[%clk
0:02:25.4]} 11... Bg8 {[%clk 0:02:16.3]} 12. Be3 {[%clk 0:02:21]} 12... Na6
{[%clk 0:02:13.9]} 13. h3 {[%clk 0:01:57.2]} 13... Nc5 {[%clk 0:02:09.6]} 14.
Bxc5 {[%clk 0:01:57.1]} 14... dxc5 {[%clk 0:02:09.5]} 15. Rfd1 {[%clk
0:01:44.7]} 15... Qe7 {[%clk 0:02:07.5]} 16. Rd2 {[%clk 0:01:34.1]} 16... Nf7
{[%clk 0:02:03.4]} 17. Nd3 {[%clk 0:01:12.1]} 17... Rfd8 {[%clk 0:01:57.2]} 18.
Rad1 {[%clk 0:01:10.6]} 18... Bd4 {[%clk 0:01:32.4]} 19. e3 {[%clk 0:01:07.5]}
19... Bf6 {[%clk 0:01:23.8]} 20. Qa3 {[%clk 0:01:04.2]} 20... Nd6 {[%clk
0:00:57.4]} 21. Nf4 {[%clk 0:00:19.5]} 21... Nxc4 {[%clk 0:00:54.2]} 22. Rxd8
{[%clk 0:00:19.5]} 22... Rxd8 {[%clk 0:00:41.8]} 23. Qxa7 {[%clk 0:00:19]} 23...
Rxd1+ {[%clk 0:00:32.4]} 24. Nxd1 {[%clk 0:00:18.5]} 24... Qd7 {[%clk 0:00:30]}
25. Bf3 {[%clk 0:00:15.8]} 25... Nxb2 {[%clk 0:00:28.6]} 26. Nxb2 {[%clk
0:00:15.2]} 26... Bxb2 {[%clk 0:00:29.5]} 27. Qxc5 {[%clk 0:00:12.3]} 27... Bf6
{[%clk 0:00:25.5]} 28. h4 {[%clk 0:00:12]} 28... Kg7 {[%clk 0:00:23.3]} 29. h5
{[%clk 0:00:11.4]} 29... Bxa2 {[%clk 0:00:19.8]} 30. Qa3 {[%clk 0:00:04.6]}
30... Bf7 {[%clk 0:00:18]} 31. Kg2 {[%clk 0:00:03.8]} 31... g5 {[%clk
0:00:16.5]} 32. Ne2 {[%clk 0:00:02.2]} 32... Bd5 {[%clk 0:00:16]} 33. Bxd5
{[%clk 0:00:02]} 33... Qxd5+ {[%clk 0:00:15.5]} 34. Kh2 {[%clk 0:00:02.9]} 34...
h6 {[%clk 0:00:14.2]} 35. Ng1 {[%clk 0:00:03.2]} 35... Qd2 {[%clk 0:00:13]} 0-1

[Event "*** Titled Tuesday Blitz"]
[Site "Chess.com"]
[Date "2021.03.30"]
[Round "6"]
[White "Bhagya_2312"]
[Black "Walter_White_Poland"]
[Result "1-0"]
[WhiteElo "2168"]
[BlackElo "2277"]
[TimeControl "180+1"]
[EndTime "11:06:26 PDT"]
[Termination "Bhagya_2312 won on time"]

1. e4 {[%clk 0:03:00.2]} 1... e5 {[%clk 0:02:59.2]} 2. Nf3 {[%clk 0:03:00.2]}
2... Nc6 {[%clk 0:02:58.9]} 3. Bc4 {[%clk 0:03:00.1]} 3... Nf6 {[%clk
0:02:57.6]} 4. d3 {[%clk 0:03:00.1]} 4... d5 {[%clk 0:02:57.4]} 5. exd5 {[%clk
0:02:58.4]} 5... Nxd5 {[%clk 0:02:57.3]} 6. O-O {[%clk 0:02:58.6]} 6... Nb6
{[%clk 0:02:57]} 7. Bb5 {[%clk 0:02:57.2]} 7... Bd6 {[%clk 0:02:56.2]} 8. Re1
{[%clk 0:02:53]} 8... f6 {[%clk 0:02:54.9]} 9. d4 {[%clk 0:02:49.9]} 9... O-O
{[%clk 0:02:53.9]} 10. Bxc6 {[%clk 0:02:22.3]} 10... bxc6 {[%clk 0:02:54.8]} 11.
h3 {[%clk 0:02:20.8]} 11... Qe8 {[%clk 0:02:37.6]} 12. Bf4 {[%clk 0:02:00]}
12... Qg6 {[%clk 0:02:18.1]} 13. Bg3 {[%clk 0:01:51.6]} 13... exd4 {[%clk
0:01:53.6]} 14. Bxd6 {[%clk 0:01:46.2]} 14... cxd6 {[%clk 0:01:51.3]} 15. Nxd4
{[%clk 0:01:28.1]} 15... Bxh3 {[%clk 0:01:41.7]} 16. Qf3 {[%clk 0:01:27.9]}
16... Bg4 {[%clk 0:00:45.9]} 17. Qxc6 {[%clk 0:01:22.9]} 17... Rac8 {[%clk
0:00:37.6]} 18. Qxd6 {[%clk 0:00:54.1]} 18... Rfd8 {[%clk 0:00:35.6]} 19. Qf4
{[%clk 0:00:53.8]} 19... Nc4 {[%clk 0:00:20.7]} 20. b3 {[%clk 0:00:40.1]} 20...
Ne5 {[%clk 0:00:20.4]} 21. Nd2 {[%clk 0:00:39.3]} 21... Rxd4 {[%clk 0:00:19.4]}
22. Qxd4 {[%clk 0:00:37.2]} 22... Nf3+ {[%clk 0:00:19.4]} 23. Nxf3 {[%clk
0:00:36.5]} 23... Bxf3 {[%clk 0:00:19.6]} 24. g3 {[%clk 0:00:32.1]} 24... Qh5
{[%clk 0:00:15.9]} 25. Qh4 {[%clk 0:00:31.4]} 25... Qf5 {[%clk 0:00:16]} 26. c4
{[%clk 0:00:27.5]} 26... g5 {[%clk 0:00:15.8]} 27. Qh6 {[%clk 0:00:26.5]} 27...
Rd8 {[%clk 0:00:15.5]} 28. Re3 {[%clk 0:00:24.2]} 28... Bc6 {[%clk 0:00:13.4]}
29. Rae1 {[%clk 0:00:23.2]} 29... a5 {[%clk 0:00:11]} 30. Re7 {[%clk 0:00:20.9]}
30... Qg6 {[%clk 0:00:06.5]} 31. Qh3 {[%clk 0:00:17.6]} 31... Rd2 {[%clk
0:00:04]} 32. Qe6+ {[%clk 0:00:16.3]} 32... Kf8 {[%clk 0:00:03.1]} 33. Qxc6
{[%clk 0:00:15.3]} 1-0

[Event "*** Titled Tuesday Blitz"]
[Site "Chess.com"]
[Date "2021.03.30"]
[Round "6"]
[White "theredking89"]
[Black "Sofiia_Hryzlova"]
[Result "1-0"]
[WhiteElo "2560"]
[BlackElo "2330"]
[TimeControl "180+1"]
[EndTime "11:06:27 PDT"]
[Termination "theredking89 won by checkmate"]

1. e4 {[%clk 0:03:00.9]} 1... e6 {[%clk 0:02:57.4]} 2. d4 {[%clk 0:03:00.5]}
2... d5 {[%clk 0:02:57]} 3. Nd2 {[%clk 0:03:01.4]} 3... dxe4 {[%clk 0:02:54.5]}
4. Nxe4 {[%clk 0:03:02.3]} 4... Nf6 {[%clk 0:02:53.3]} 5. Nxf6+ {[%clk
0:03:00.7]} 5... Qxf6 {[%clk 0:02:52.6]} 6. Nf3 {[%clk 0:03:00.2]} 6... Bd6
{[%clk 0:02:52.3]} 7. Bd3 {[%clk 0:02:58.2]} 7... h6 {[%clk 0:02:50.4]} 8. Qe2
{[%clk 0:02:49.6]} 8... Bd7 {[%clk 0:02:32]} 9. Bd2 {[%clk 0:02:43.8]} 9... Bc6
{[%clk 0:02:27.9]} 10. Be4 {[%clk 0:02:31.8]} 10... Bxe4 {[%clk 0:02:14.1]} 11.
Qxe4 {[%clk 0:02:32.7]} 11... Nc6 {[%clk 0:02:13.6]} 12. O-O-O {[%clk
0:02:22.8]} 12... O-O-O {[%clk 0:02:09.9]} 13. Kb1 {[%clk 0:02:21.1]} 13... Rhe8
{[%clk 0:02:03.7]} 14. Rhe1 {[%clk 0:02:19.4]} 14... Kb8 {[%clk 0:02:03.4]} 15.
h3 {[%clk 0:02:18.5]} 15... a6 {[%clk 0:01:57.2]} 16. a3 {[%clk 0:02:13.6]}
16... g5 {[%clk 0:01:25.7]} 17. Bc3 {[%clk 0:02:12.4]} 17... Qe7 {[%clk
0:01:23.3]} 18. Qg4 {[%clk 0:01:57.8]} 18... Na7 {[%clk 0:01:21.8]} 19. d5
{[%clk 0:01:50.8]} 19... Nb5 {[%clk 0:01:19.2]} 20. Bb4 {[%clk 0:01:48.1]} 20...
Bxb4 {[%clk 0:01:17.9]} 21. axb4 {[%clk 0:01:48.9]} 21... Qf6 {[%clk 0:01:09.3]}
22. dxe6 {[%clk 0:01:40.6]} 22... Rxd1+ {[%clk 0:01:08.7]} 23. Rxd1 {[%clk
0:01:41.5]} 23... Rxe6 {[%clk 0:01:09]} 24. Qc4 {[%clk 0:01:29.9]} 24... Rc6
{[%clk 0:00:57.1]} 25. Qe4 {[%clk 0:01:14.6]} 25... Ka7 {[%clk 0:00:51.1]} 26.
Rd5 {[%clk 0:01:01.2]} 26... Re6 {[%clk 0:00:47.4]} 27. Qd3 {[%clk 0:00:47.1]}
27... Qf4 {[%clk 0:00:40.2]} 28. c3 {[%clk 0:00:43.7]} 28... Qe4 {[%clk
0:00:31.3]} 29. Qxe4 {[%clk 0:00:41.3]} 29... Rxe4 {[%clk 0:00:32.2]} 30. Rf5
{[%clk 0:00:40.1]} 30... Nd6 {[%clk 0:00:28.9]} 31. Rf6 {[%clk 0:00:39.9]} 31...
Re2 {[%clk 0:00:27.8]} 32. Nd4 {[%clk 0:00:39.4]} 32... Re1+ {[%clk 0:00:27.1]}
33. Kc2 {[%clk 0:00:39.2]} 33... h5 {[%clk 0:00:26.3]} 34. b3 {[%clk 0:00:38.3]}
34... Rg1 {[%clk 0:00:25]} 35. g3 {[%clk 0:00:35.7]} 35... Rh1 {[%clk 0:00:25]}
36. c4 {[%clk 0:00:34.6]} 36... Rxh3 {[%clk 0:00:23.6]} 37. c5 {[%clk
0:00:34.8]} 37... Ne4 {[%clk 0:00:22.9]} 38. Rxf7 {[%clk 0:00:35]} 38... Rh2
{[%clk 0:00:22.8]} 39. Rxc7 {[%clk 0:00:35]} 39... Rxf2+ {[%clk 0:00:22]} 40.
Kd3 {[%clk 0:00:35.3]} 40... Kb8 {[%clk 0:00:08.8]} 41. Rg7 {[%clk 0:00:35.3]}
41... Nxg3 {[%clk 0:00:08.7]} 42. b5 {[%clk 0:00:32]} 42... h4 {[%clk
0:00:08.3]} 43. b6 {[%clk 0:00:30.3]} 43... Rf8 {[%clk 0:00:04.8]} 44. c6 {[%clk
0:00:29.8]} 44... bxc6 {[%clk 0:00:03.9]} 45. Nxc6+ {[%clk 0:00:29.4]} 45... Kc8
{[%clk 0:00:03.9]} 46. Rc7# {[%clk 0:00:28.8]} 1-0

[Event "*** Titled Tuesday Blitz"]
[Site "Chess.com"]
[Date "2021.03.30"]
[Round "6"]
[White "Hikaru"]
[Black "Zhigalko_Sergei"]
[Result "1-0"]
[WhiteElo "3215"]
[BlackElo "2899"]
[TimeControl "180+1"]
[EndTime "11:06:28 PDT"]
[Termination "Hikaru won on time"]

1. Nf3 {[%clk 0:03:00.9]} 1... d5 {[%clk 0:03:00.2]} 2. e3 {[%clk 0:03:00.8]}
2... e6 {[%clk 0:02:56.3]} 3. c4 {[%clk 0:02:59.8]} 3... Nf6 {[%clk 0:02:56.7]}
4. b3 {[%clk 0:03:00]} 4... Bd6 {[%clk 0:02:56.8]} 5. Bb2 {[%clk 0:03:00.4]}
5... O-O {[%clk 0:02:57]} 6. d4 {[%clk 0:03:01.2]} 6... b6 {[%clk 0:02:57.2]} 7.
Nc3 {[%clk 0:03:01.7]} 7... Bb7 {[%clk 0:02:57.7]} 8. Bd3 {[%clk 0:03:01.7]}
8... Nbd7 {[%clk 0:02:57.1]} 9. cxd5 {[%clk 0:02:59.4]} 9... exd5 {[%clk
0:02:54.3]} 10. Nd2 {[%clk 0:02:57.6]} 10... Re8 {[%clk 0:02:42]} 11. O-O {[%clk
0:02:56.3]} 11... Ne4 {[%clk 0:02:25.1]} 12. Rc1 {[%clk 0:02:40.5]} 12... a6
{[%clk 0:02:25.1]} 13. a3 {[%clk 0:02:35.3]} 13... Re6 {[%clk 0:02:12.5]} 14. g3
{[%clk 0:02:23.1]} 14... Ndf6 {[%clk 0:01:59.3]} 15. b4 {[%clk 0:02:22.6]} 15...
Qd7 {[%clk 0:01:53.7]} 16. Ndxe4 {[%clk 0:02:20.9]} 16... Nxe4 {[%clk
0:01:50.1]} 17. Re1 {[%clk 0:02:13.6]} 17... Rae8 {[%clk 0:01:02.7]} 18. Bf1
{[%clk 0:02:12.7]} 18... Rh6 {[%clk 0:00:38.5]} 19. Bg2 {[%clk 0:02:05.3]} 19...
Qf5 {[%clk 0:00:36.4]} 20. f4 {[%clk 0:01:54.2]} 20... Nxc3 {[%clk 0:00:33.4]}
21. Rxc3 {[%clk 0:01:52.3]} 21... Rhe6 {[%clk 0:00:32.3]} 22. Qd2 {[%clk
0:01:42.5]} 22... h5 {[%clk 0:00:30.9]} 23. Qf2 {[%clk 0:01:28.8]} 23... R6e7
{[%clk 0:00:29]} 24. Qf3 {[%clk 0:01:19.3]} 24... g6 {[%clk 0:00:20.5]} 25. Bf1
{[%clk 0:01:17.8]} 25... Qf6 {[%clk 0:00:15.1]} 26. Rc2 {[%clk 0:01:15]} 26...
Qf5 {[%clk 0:00:12.6]} 27. Rd2 {[%clk 0:01:14]} 27... Qe4 {[%clk 0:00:12.7]} 28.
Qf2 {[%clk 0:01:09.5]} 28... Qf5 {[%clk 0:00:12.5]} 29. Bd3 {[%clk 0:01:07.3]}
29... Qf6 {[%clk 0:00:12.9]} 30. Bf1 {[%clk 0:01:02.3]} 30... Qf5 {[%clk
0:00:11.5]} 31. Bg2 {[%clk 0:01:02.7]} 31... Bc6 {[%clk 0:00:09.2]} 32. Qf3
{[%clk 0:00:49.6]} 32... Bb5 {[%clk 0:00:05.5]} 33. h3 {[%clk 0:00:49.6]} 33...
Bc4 {[%clk 0:00:05]} 34. g4 {[%clk 0:00:49.6]} 34... hxg4 {[%clk 0:00:05.9]} 35.
hxg4 {[%clk 0:00:50.5]} 35... Qf6 {[%clk 0:00:05.5]} 36. g5 {[%clk 0:00:50.7]}
36... Qh8 {[%clk 0:00:03.6]} 37. Bf1 {[%clk 0:00:44.3]} 37... b5 {[%clk
0:00:02.4]} 38. Rh2 {[%clk 0:00:44.6]} 38... Qg7 {[%clk 0:00:02.5]} 39. Bxc4
{[%clk 0:00:41.5]} 39... bxc4 {[%clk 0:00:03.1]} 40. Kf2 {[%clk 0:00:34.8]}
40... c6 {[%clk 0:00:02.8]} 41. Bc1 {[%clk 0:00:34.2]} 41... Re4 {[%clk
0:00:03.1]} 42. Reh1 {[%clk 0:00:33.5]} 42... c3 {[%clk 0:00:03.7]} 43. Qh3
{[%clk 0:00:32.4]} 43... Kf8 {[%clk 0:00:03.7]} 44. Qd7 {[%clk 0:00:27.5]} 44...
Bxf4 {[%clk 0:00:01.4]} 45. Rh8+ {[%clk 0:00:26.9]} 1-0

[Event "*** Titled Tuesday Blitz"]
[Site "Chess.com"]
[Date "2021.03.30"]
[Round "6"]
[White "Aslanov_Umid"]
[Black "FMalexhdez"]
[Result "1-0"]
[WhiteElo "2419"]
[BlackElo "2227"]
[TimeControl "180+1"]
[EndTime "11:06:28 PDT"]
[Termination "Aslanov_Umid won by resignation"]

1. e4 {[%clk 0:03:00.9]} 1... c5 {[%clk 0:02:59.4]} 2. Nf3 {[%clk 0:03:00.7]}
2... d6 {[%clk 0:02:59]} 3. d4 {[%clk 0:03:01.3]} 3... cxd4 {[%clk 0:02:59.5]}
4. Nxd4 {[%clk 0:03:02.2]} 4... Nf6 {[%clk 0:03:00]} 5. Nc3 {[%clk 0:03:02.6]}
5... a6 {[%clk 0:03:00.3]} 6. Bc4 {[%clk 0:03:02.3]} 6... e6 {[%clk 0:02:59]} 7.
Bb3 {[%clk 0:03:02.6]} 7... Nbd7 {[%clk 0:02:57.3]} 8. Bg5 {[%clk 0:03:01.6]}
8... b5 {[%clk 0:02:45.5]} 9. a3 {[%clk 0:02:59.3]} 9... Bb7 {[%clk 0:02:45.1]}
10. Qe2 {[%clk 0:02:55.9]} 10... Nc5 {[%clk 0:02:41.9]} 11. O-O {[%clk
0:02:51.8]} 11... Be7 {[%clk 0:02:36.5]} 12. Bh4 {[%clk 0:02:49.5]} 12... Nfxe4
{[%clk 0:02:29.9]} 13. Bxe7 {[%clk 0:02:48.9]} 13... Qxe7 {[%clk 0:02:29.3]} 14.
Nxe4 {[%clk 0:02:48.4]} 14... Nxe4 {[%clk 0:02:27.3]} 15. Rfe1 {[%clk
0:02:46.3]} 15... O-O {[%clk 0:02:21.8]} 16. Qg4 {[%clk 0:02:42.3]} 16... d5
{[%clk 0:02:17.2]} 17. f3 {[%clk 0:02:33.4]} 17... Nf6 {[%clk 0:02:11]} 18. Qg3
{[%clk 0:01:42.3]} 18... Qc5 {[%clk 0:02:04.1]} 19. Qf2 {[%clk 0:01:42]} 19...
Rac8 {[%clk 0:02:01.3]} 20. c3 {[%clk 0:01:41.1]} 20... Rfe8 {[%clk 0:01:57.9]}
21. Bc2 {[%clk 0:01:40.7]} 21... e5 {[%clk 0:01:55.7]} 22. Nf5 {[%clk
0:01:40.5]} 22... Qxf2+ {[%clk 0:01:54.4]} 23. Kxf2 {[%clk 0:01:41.3]} 23...
Rcd8 {[%clk 0:01:50]} 24. Rad1 {[%clk 0:01:38]} 24... g6 {[%clk 0:01:43.2]} 25.
Ng3 {[%clk 0:01:35.7]} 25... d4 {[%clk 0:01:34.7]} 26. cxd4 {[%clk 0:01:36.5]}
26... exd4 {[%clk 0:01:31.5]} 27. Rxe8+ {[%clk 0:01:36.3]} 27... Nxe8 {[%clk
0:01:31.5]} 28. Ne2 {[%clk 0:01:36.7]} 28... Nf6 {[%clk 0:01:14]} 29. Rxd4
{[%clk 0:01:35.1]} 29... Rxd4 {[%clk 0:01:12.7]} 30. Nxd4 {[%clk 0:01:36]} 30...
Kf8 {[%clk 0:01:11.8]} 31. Ke3 {[%clk 0:01:33.6]} 31... Ke7 {[%clk 0:01:11.7]}
32. Nb3 {[%clk 0:01:30.1]} 32... Nd5+ {[%clk 0:01:10.3]} 33. Kd4 {[%clk
0:01:27.5]} 33... Kd6 {[%clk 0:01:10.6]} 34. Nc5 {[%clk 0:01:25.4]} 34... Bc8
{[%clk 0:01:08.9]} 35. g3 {[%clk 0:01:21.3]} 35... f5 {[%clk 0:01:06.6]} 36. Bb3
{[%clk 0:01:11.6]} 36... Ne7 {[%clk 0:01:00.7]} 37. Nd3 {[%clk 0:01:08.1]} 37...
Nc6+ {[%clk 0:00:59.1]} 38. Ke3 {[%clk 0:01:08]} 38... a5 {[%clk 0:00:55.3]} 39.
Bg8 {[%clk 0:01:07.6]} 39... h6 {[%clk 0:00:46.6]} 40. Bh7 {[%clk 0:01:03.9]}
40... Ne7 {[%clk 0:00:41.9]} 41. Nf4 {[%clk 0:01:03.6]} 41... g5 {[%clk
0:00:39.6]} 42. Ne2 {[%clk 0:01:01.9]} 42... Ke5 {[%clk 0:00:35.1]} 43. Nd4
{[%clk 0:00:49.1]} 43... b4 {[%clk 0:00:32.6]} 44. axb4 {[%clk 0:00:48.5]} 44...
axb4 {[%clk 0:00:32.6]} 45. h4 {[%clk 0:00:32.5]} 45... Kf6 {[%clk 0:00:30.2]}
46. h5 {[%clk 0:00:31.2]} 46... Kg7 {[%clk 0:00:28.1]} 47. Bg6 {[%clk 0:00:31]}
47... Nxg6 {[%clk 0:00:28.3]} 48. hxg6 {[%clk 0:00:31.9]} 48... Kxg6 {[%clk
0:00:28.6]} 49. Nc6 {[%clk 0:00:31.1]} 49... b3 {[%clk 0:00:23.7]} 50. Ne7+
{[%clk 0:00:31.1]} 1-0